[Event "Late-Titled-Tuesday-Blitz-September-26-2023"]
[Site "Chess.com"]
[Date "2023.09.26"]
[Round "2"]
[White "ZuraTqebuchava"]
[Black "elpatodice"]
[Result "0-1"]
[WhiteElo "2244"]
[BlackElo "2468"]
[TimeControl "180+1"]
[EndTime "14:18:22 PDT"]
[Termination "elpatodice won on time"]

1. e4 {[%clk 0:03:00]} 1... c5 {[%clk 0:02:56.4]} 2. Nf3 {[%clk 0:02:59.3]} 2...
g6 {[%clk 0:02:55.6]} 3. c3 {[%clk 0:02:57.6]} 3... Bg7 {[%clk 0:02:55.6]} 4. d4
{[%clk 0:02:57.9]} 4... cxd4 {[%clk 0:02:56.2]} 5. Nxd4 {[%clk 0:02:57.9]} 5...
Nc6 {[%clk 0:02:52.9]} 6. Be3 {[%clk 0:02:54.1]} 6... Nf6 {[%clk 0:02:50]} 7.
Nxc6 {[%clk 0:02:53.6]} 7... bxc6 {[%clk 0:02:48.4]} 8. Bd3 {[%clk 0:02:48.5]}
8... O-O {[%clk 0:02:47.8]} 9. O-O {[%clk 0:02:46.2]} 9... d5 {[%clk 0:02:46.7]}
10. exd5 {[%clk 0:02:43.5]} 10... cxd5 {[%clk 0:02:38.6]} 11. Bd4 {[%clk
0:02:41.3]} 11... Re8 {[%clk 0:02:31.8]} 12. Re1 {[%clk 0:02:33.1]} 12... Qc7
{[%clk 0:02:25]} 13. Be5 {[%clk 0:02:31.9]} 13... Qb6 {[%clk 0:02:24.9]} 14. Qb3
{[%clk 0:02:19.8]} 14... Qc5 {[%clk 0:02:03.2]} 15. Bd4 {[%clk 0:02:12.5]} 15...
Qd6 {[%clk 0:01:57.7]} 16. Be5 {[%clk 0:02:06.6]} 16... Qc5 {[%clk 0:01:57.7]}
17. Nd2 {[%clk 0:01:51.8]} 17... Ng4 {[%clk 0:01:47.3]} 18. Bg3 {[%clk
0:01:47.4]} 18... Be6 {[%clk 0:01:37.3]} 19. Qa4 {[%clk 0:01:38.1]} 19... h5
{[%clk 0:01:27.1]} 20. Bxg6 {[%clk 0:01:25.6]} 20... fxg6 {[%clk 0:01:21.4]} 21.
Rxe6 {[%clk 0:01:24.3]} 21... Bf6 {[%clk 0:01:18.6]} 22. h3 {[%clk 0:01:15.1]}
22... Nh6 {[%clk 0:01:12.4]} 23. Rae1 {[%clk 0:01:12.3]} 23... Nf5 {[%clk
0:01:12.1]} 24. Rxf6 {[%clk 0:01:05.9]} 24... Kg7 {[%clk 0:00:51.2]} 25. Nb3
{[%clk 0:00:50.9]} 25... Qc4 {[%clk 0:00:45.8]} 26. Qxc4 {[%clk 0:00:42.7]}
26... dxc4 {[%clk 0:00:46.7]} 27. Rfe6 {[%clk 0:00:42.1]} 27... cxb3 {[%clk
0:00:47]} 28. axb3 {[%clk 0:00:42.8]} 28... Rad8 {[%clk 0:00:45.4]} 29. Bf4
{[%clk 0:00:26.2]} 29... Rd7 {[%clk 0:00:43.7]} 30. Bg5 {[%clk 0:00:24.2]} 30...
Kf7 {[%clk 0:00:43.6]} 31. R6e2 {[%clk 0:00:23.4]} 31... e6 {[%clk 0:00:36.2]}
32. b4 {[%clk 0:00:22.6]} 32... Rd5 {[%clk 0:00:36.4]} 33. Ra1 {[%clk
0:00:20.9]} 33... Rd7 {[%clk 0:00:34.3]} 34. Ra6 {[%clk 0:00:20.1]} 34... Nd6
{[%clk 0:00:33.1]} 35. Re1 {[%clk 0:00:17.9]} 35... Nc4 {[%clk 0:00:32.6]} 36.
Rea1 {[%clk 0:00:15.8]} 36... Nxb2 {[%clk 0:00:31.3]} 37. Rxa7 {[%clk
0:00:15.2]} 37... Rxa7 {[%clk 0:00:30.2]} 38. Rxa7+ {[%clk 0:00:16.1]} 38... Kg8
{[%clk 0:00:30.3]} 39. Bf6 {[%clk 0:00:13.6]} 39... Nc4 {[%clk 0:00:15.9]} 40.
Kf1 {[%clk 0:00:08]} 40... Rc8 {[%clk 0:00:14.4]} 41. Ke2 {[%clk 0:00:06.8]}
41... Nd6 {[%clk 0:00:14.3]} 42. Rg7+ {[%clk 0:00:05.3]} 42... Kf8 {[%clk
0:00:14]} 43. Rxg6 {[%clk 0:00:04.6]} 43... Kf7 {[%clk 0:00:14.6]} 44. Rh6
{[%clk 0:00:03.3]} 44... Nf5 {[%clk 0:00:15.2]} 45. Rxh5 {[%clk 0:00:02.8]}
45... Kxf6 {[%clk 0:00:15.9]} 46. Rh7 {[%clk 0:00:03.2]} 46... Rxc3 {[%clk
0:00:15.7]} 47. b5 {[%clk 0:00:01.2]} 47... Rb3 {[%clk 0:00:16.1]} 0-1

[Event "Late-Titled-Tuesday-Blitz-September-26-2023"]
[Site "Chess.com"]
[Date "2023.09.26"]
[Round "2"]
[White "ShiroglanTalibov"]
[Black "Fleetw00dMac"]
[Result "1-0"]
[WhiteElo "2838"]
[BlackElo "2492"]
[TimeControl "180+1"]
[EndTime "14:18:24 PDT"]
[Termination "ShiroglanTalibov won on time"]

1. d4 {[%clk 0:03:00.9]} 1... Nf6 {[%clk 0:02:59.3]} 2. c4 {[%clk 0:03:01.1]}
2... g6 {[%clk 0:02:59.4]} 3. Nc3 {[%clk 0:03:00.7]} 3... Bg7 {[%clk 0:02:59.4]}
4. e4 {[%clk 0:03:00.2]} 4... d6 {[%clk 0:02:59.5]} 5. Nf3 {[%clk 0:03:00.7]}
5... O-O {[%clk 0:02:59.5]} 6. Be2 {[%clk 0:03:01.3]} 6... e5 {[%clk 0:02:59.3]}
7. O-O {[%clk 0:02:59.4]} 7... exd4 {[%clk 0:02:58.8]} 8. Nxd4 {[%clk 0:02:59]}
8... Re8 {[%clk 0:02:59]} 9. f3 {[%clk 0:02:59]} 9... c6 {[%clk 0:02:58.8]} 10.
Nc2 {[%clk 0:02:36]} 10... Na6 {[%clk 0:02:56.6]} 11. Kh1 {[%clk 0:02:35.6]}
11... Nc7 {[%clk 0:02:49.1]} 12. Bg5 {[%clk 0:02:34.9]} 12... Ne6 {[%clk
0:02:39.9]} 13. Bh4 {[%clk 0:02:33.8]} 13... Nf4 {[%clk 0:02:39.8]} 14. Qd2
{[%clk 0:02:33.6]} 14... Nxe2 {[%clk 0:02:38.8]} 15. Qxe2 {[%clk 0:02:32]} 15...
Qb6 {[%clk 0:02:29.9]} 16. b3 {[%clk 0:02:30.3]} 16... Nh5 {[%clk 0:02:28.6]}
17. Bf2 {[%clk 0:02:28.9]} 17... Qa5 {[%clk 0:02:17.1]} 18. b4 {[%clk
0:02:28.8]} 18... Qg5 {[%clk 0:02:15.8]} 19. Bd4 {[%clk 0:02:25.8]} 19... d5
{[%clk 0:02:00]} 20. cxd5 {[%clk 0:02:19.4]} 20... cxd5 {[%clk 0:01:59.9]} 21.
Bxg7 {[%clk 0:02:16.6]} 21... Kxg7 {[%clk 0:01:57.7]} 22. f4 {[%clk 0:02:16.2]}
22... Nxf4 {[%clk 0:01:52.1]} 23. Qf2 {[%clk 0:02:07]} 23... Qxg2+ {[%clk
0:01:36.1]} 24. Qxg2 {[%clk 0:02:06.2]} 24... Nxg2 {[%clk 0:01:36.4]} 25. Kxg2
{[%clk 0:02:07.1]} 25... dxe4 {[%clk 0:01:36.6]} 26. Ne3 {[%clk 0:01:58.4]}
26... Be6 {[%clk 0:01:33.5]} 27. Rac1 {[%clk 0:01:57.3]} 27... Rad8 {[%clk
0:01:26.2]} 28. Rfd1 {[%clk 0:01:57]} 28... Rd3 {[%clk 0:01:15.7]} 29. Kf2
{[%clk 0:01:51.4]} 29... Red8 {[%clk 0:01:13.8]} 30. Nxe4 {[%clk 0:01:48.9]}
30... Rxd1 {[%clk 0:01:10.8]} 31. Nxd1 {[%clk 0:01:46.5]} 31... Rd4 {[%clk
0:01:05.6]} 32. Nc5 {[%clk 0:01:43]} 32... Rxb4 {[%clk 0:01:03.3]} 33. Nxe6+
{[%clk 0:01:42.7]} 33... fxe6 {[%clk 0:01:03.6]} 34. Rc7+ {[%clk 0:01:42.8]}
34... Kf6 {[%clk 0:01:03.9]} 35. Rxh7 {[%clk 0:01:38.3]} 35... Ra4 {[%clk
0:00:59.3]} 36. Nc3 {[%clk 0:01:38.5]} 36... Ra3 {[%clk 0:00:59.3]} 37. Rh3
{[%clk 0:01:38.3]} 37... Ke5 {[%clk 0:00:58.2]} 38. Re3+ {[%clk 0:01:37.9]}
38... Kf5 {[%clk 0:00:58.5]} 39. Kf3 {[%clk 0:01:32.4]} 39... a6 {[%clk
0:00:51.1]} 40. Ne4 {[%clk 0:01:32.3]} 40... Rxa2 {[%clk 0:00:41.8]} 41. h4
{[%clk 0:01:32.1]} 41... Ra1 {[%clk 0:00:35.8]} 42. Nd6+ {[%clk 0:01:28.7]}
42... Kf6 {[%clk 0:00:35.2]} 43. Nxb7 {[%clk 0:01:29]} 43... a5 {[%clk 0:00:29]}
44. Nc5 {[%clk 0:01:28.4]} 44... e5 {[%clk 0:00:28.8]} 45. Nd7+ {[%clk
0:01:27.6]} 45... Kg7 {[%clk 0:00:27.5]} 46. Nxe5 {[%clk 0:01:27.1]} 46... a4
{[%clk 0:00:27.8]} 47. Kf4 {[%clk 0:01:15.4]} 47... Rf1+ {[%clk 0:00:26.3]} 48.
Nf3 {[%clk 0:01:15.2]} 48... Ra1 {[%clk 0:00:24.5]} 49. Re7+ {[%clk 0:01:13.7]}
49... Kf6 {[%clk 0:00:23.2]} 50. Ra7 {[%clk 0:01:13.7]} 50... a3 {[%clk
0:00:23.2]} 51. Ra6+ {[%clk 0:01:14.1]} 51... Ke7 {[%clk 0:00:22.4]} 52. Rxg6
{[%clk 0:01:12.7]} 52... a2 {[%clk 0:00:21.9]} 53. Rg2 {[%clk 0:01:08.6]} 53...
Kf7 {[%clk 0:00:19.9]} 54. Kg4 {[%clk 0:00:59.6]} 54... Kg6 {[%clk 0:00:18.4]}
55. Ne5+ {[%clk 0:00:47.8]} 55... Kf6 {[%clk 0:00:16.3]} 56. Nd7+ {[%clk
0:00:45.6]} 56... Kg6 {[%clk 0:00:14.4]} 57. h5+ {[%clk 0:00:43.3]} 57... Kh7
{[%clk 0:00:14.3]} 58. Kg5 {[%clk 0:00:40.9]} 58... Kh8 {[%clk 0:00:12.2]} 59.
Nf6 {[%clk 0:00:37.7]} 59... Kg7 {[%clk 0:00:03.2]} 60. Ng4 {[%clk 0:00:38]}
60... Kh7 {[%clk 0:00:02.5]} 61. Rb2 {[%clk 0:00:37.5]} 1-0

[Event "Late-Titled-Tuesday-Blitz-September-26-2023"]
[Site "Chess.com"]
[Date "2023.09.26"]
[Round "2"]
[White "Pedrada88"]
[Black "expii"]
[Result "1-0"]
[WhiteElo "2474"]
[BlackElo "2247"]
[TimeControl "180+1"]
[EndTime "14:18:24 PDT"]
[Termination "Pedrada88 won by checkmate"]

1. e4 {[%clk 0:01:49.3]} 1... c5 {[%clk 0:02:54.5]} 2. Nf3 {[%clk 0:01:49.5]}
2... d6 {[%clk 0:02:53.9]} 3. d4 {[%clk 0:01:48.9]} 3... cxd4 {[%clk 0:02:54.6]}
4. Nxd4 {[%clk 0:01:49.5]} 4... Nf6 {[%clk 0:02:54.7]} 5. Nc3 {[%clk 0:01:50.1]}
5... g6 {[%clk 0:02:54.8]} 6. Be2 {[%clk 0:01:48.1]} 6... Bg7 {[%clk 0:02:54]}
7. O-O {[%clk 0:01:49]} 7... O-O {[%clk 0:02:52.8]} 8. Be3 {[%clk 0:01:49.5]}
8... Nc6 {[%clk 0:02:52.8]} 9. Kh1 {[%clk 0:01:49.3]} 9... Be6 {[%clk 0:02:51]}
10. Nb3 {[%clk 0:01:49.1]} 10... a6 {[%clk 0:02:47.7]} 11. f4 {[%clk 0:01:49.2]}
11... b5 {[%clk 0:02:46.1]} 12. f5 {[%clk 0:01:46.7]} 12... Bxb3 {[%clk
0:02:45.7]} 13. axb3 {[%clk 0:01:39.3]} 13... Ne5 {[%clk 0:02:42.9]} 14. g4
{[%clk 0:01:34.4]} 14... Rc8 {[%clk 0:02:40.9]} 15. g5 {[%clk 0:01:33.1]} 15...
Nfd7 {[%clk 0:02:29.6]} 16. Rxa6 {[%clk 0:01:29.9]} 16... b4 {[%clk 0:02:20.6]}
17. Nd5 {[%clk 0:01:27.7]} 17... Nc5 {[%clk 0:02:16.8]} 18. Ra7 {[%clk
0:01:22.6]} 18... Re8 {[%clk 0:02:12.8]} 19. f6 {[%clk 0:01:20.3]} 19... exf6
{[%clk 0:02:05.9]} 20. gxf6 {[%clk 0:01:15.7]} 20... Bf8 {[%clk 0:02:04.3]} 21.
Bd3 {[%clk 0:01:08.9]} 21... Ncxd3 {[%clk 0:01:58.7]} 22. cxd3 {[%clk
0:01:09.8]} 22... Ra8 {[%clk 0:01:55.9]} 23. Rxa8 {[%clk 0:01:04.2]} 23... Qxa8
{[%clk 0:01:37.7]} 24. Nc7 {[%clk 0:01:04.6]} 24... Qc6 {[%clk 0:01:31.7]} 25.
Nxe8 {[%clk 0:01:04.4]} 25... Qxe8 {[%clk 0:01:32.6]} 26. Qc2 {[%clk 0:00:59.8]}
26... Qe6 {[%clk 0:00:52.5]} 27. d4 {[%clk 0:00:42.4]} 27... Ng4 {[%clk
0:00:35.4]} 28. Bg5 {[%clk 0:00:42.4]} 28... h6 {[%clk 0:00:33.2]} 29. d5 {[%clk
0:00:28]} 29... Qe8 {[%clk 0:00:23.7]} 30. Qg2 {[%clk 0:00:25.8]} 30... h5
{[%clk 0:00:16.7]} 31. Rc1 {[%clk 0:00:21.4]} 31... Qe5 {[%clk 0:00:14.7]} 32.
Bh4 {[%clk 0:00:11.2]} 32... Qf4 {[%clk 0:00:12.9]} 33. Rf1 {[%clk 0:00:09.5]}
33... Qe5 {[%clk 0:00:11.1]} 34. Bg3 {[%clk 0:00:09.6]} 34... Qd4 {[%clk
0:00:09.8]} 35. Rc1 {[%clk 0:00:08.7]} 35... Nxf6 {[%clk 0:00:06.6]} 36. Qf3
{[%clk 0:00:07.4]} 36... Nxe4 {[%clk 0:00:05.9]} 37. Re1 {[%clk 0:00:07.4]}
37... Nf6 {[%clk 0:00:05.8]} 38. Bf2 {[%clk 0:00:05.8]} 38... Qxb2 {[%clk
0:00:04.2]} 39. Rd1 {[%clk 0:00:05.3]} 39... Ng4 {[%clk 0:00:04.2]} 40. Bg3
{[%clk 0:00:04.4]} 40... Qc3 {[%clk 0:00:03.4]} 41. Qxc3 {[%clk 0:00:03.4]}
41... bxc3 {[%clk 0:00:04.3]} 42. Rc1 {[%clk 0:00:03.5]} 42... Bg7 {[%clk
0:00:04.4]} 43. Be1 {[%clk 0:00:04]} 43... Ne3 {[%clk 0:00:03.3]} 44. Bxc3
{[%clk 0:00:04.2]} 44... Bxc3 {[%clk 0:00:03.9]} 45. Rxc3 {[%clk 0:00:04.9]}
45... Nxd5 {[%clk 0:00:04.5]} 46. Rd3 {[%clk 0:00:05]} 46... Nf4 {[%clk
0:00:03.1]} 47. Rxd6 {[%clk 0:00:05.5]} 47... g5 {[%clk 0:00:03.2]} 48. b4
{[%clk 0:00:05.8]} 48... f5 {[%clk 0:00:03.2]} 49. b5 {[%clk 0:00:06.1]} 49...
Kg7 {[%clk 0:00:02.9]} 50. b6 {[%clk 0:00:05.9]} 50... g4 {[%clk 0:00:03.8]} 51.
b7 {[%clk 0:00:06.1]} 51... h4 {[%clk 0:00:04.7]} 52. b8=Q {[%clk 0:00:06.5]}
52... g3 {[%clk 0:00:05.6]} 53. Qc7+ {[%clk 0:00:06.8]} 53... Kh8 {[%clk
0:00:05.3]} 54. Rd8# {[%clk 0:00:07.7]} 1-0

[Event "Late-Titled-Tuesday-Blitz-September-26-2023"]
[Site "Chess.com"]
[Date "2023.09.26"]
[Round "2"]
[White "VincentKeymer"]
[Black "jaskol95"]
[Result "1-0"]
[WhiteElo "3043"]
[BlackElo "2624"]
[TimeControl "180+1"]
[EndTime "14:18:25 PDT"]
[Termination "VincentKeymer won by checkmate"]

1. a3 {[%clk 0:03:00.9]} 1... d5 {[%clk 0:02:59.7]} 2. Nf3 {[%clk 0:03:00.2]}
2... Nf6 {[%clk 0:02:53.7]} 3. e3 {[%clk 0:03:00.4]} 3... Bf5 {[%clk 0:02:54]}
4. c4 {[%clk 0:03:00.1]} 4... c6 {[%clk 0:02:54.2]} 5. b4 {[%clk 0:03:00.2]}
5... e6 {[%clk 0:02:54.5]} 6. Bb2 {[%clk 0:03:00.4]} 6... Be7 {[%clk 0:02:54.4]}
7. Be2 {[%clk 0:03:00.9]} 7... Nbd7 {[%clk 0:02:54.7]} 8. O-O {[%clk 0:03:01.2]}
8... h6 {[%clk 0:02:54.9]} 9. Nc3 {[%clk 0:03:01.1]} 9... O-O {[%clk 0:02:55.1]}
10. Re1 {[%clk 0:03:01.7]} 10... Re8 {[%clk 0:02:48.5]} 11. Bf1 {[%clk
0:03:01.1]} 11... Ne4 {[%clk 0:02:45.3]} 12. Ne2 {[%clk 0:02:44.8]} 12... Bf6
{[%clk 0:02:42.1]} 13. Bxf6 {[%clk 0:02:32]} 13... Ndxf6 {[%clk 0:02:29.7]} 14.
d3 {[%clk 0:02:30.2]} 14... Ng5 {[%clk 0:02:22.9]} 15. Nfd4 {[%clk 0:02:28.2]}
15... Bg6 {[%clk 0:02:17.8]} 16. f4 {[%clk 0:02:17.4]} 16... Ngh7 {[%clk
0:02:17.8]} 17. c5 {[%clk 0:02:18]} 17... e5 {[%clk 0:02:00.5]} 18. fxe5 {[%clk
0:02:16.4]} 18... Rxe5 {[%clk 0:01:59.9]} 19. Nf4 {[%clk 0:02:16.8]} 19... Bh5
{[%clk 0:01:52.1]} 20. Qd2 {[%clk 0:02:11.6]} 20... Qe7 {[%clk 0:01:47.3]} 21.
Be2 {[%clk 0:01:38.3]} 21... Bxe2 {[%clk 0:01:46.9]} 22. Rxe2 {[%clk 0:01:39.2]}
22... Re8 {[%clk 0:01:46.5]} 23. Rf1 {[%clk 0:01:35.1]} 23... Ng4 {[%clk
0:01:25.8]} 24. Rfe1 {[%clk 0:01:15.5]} 24... Nxe3 {[%clk 0:01:14.1]} 25. Nf3
{[%clk 0:00:27.1]} 25... d4 {[%clk 0:00:36.8]} 26. Nxd4 {[%clk 0:00:26.8]} 26...
g5 {[%clk 0:00:12.6]} 27. Nh5 {[%clk 0:00:17.9]} 27... Ng4 {[%clk 0:00:10.1]}
28. h3 {[%clk 0:00:13]} 28... Qd7 {[%clk 0:00:04.5]} 29. Nf3 {[%clk 0:00:10.4]}
29... Rxe2 {[%clk 0:00:04.7]} 30. Rxe2 {[%clk 0:00:11.3]} 30... Rxe2 {[%clk
0:00:05]} 31. Qxe2 {[%clk 0:00:12]} 31... Ngf6 {[%clk 0:00:05.2]} 32. Ng3 {[%clk
0:00:11.5]} 32... Nd5 {[%clk 0:00:03.2]} 33. d4 {[%clk 0:00:11.9]} 33... Nf4
{[%clk 0:00:03.5]} 34. Qe5 {[%clk 0:00:11.7]} 34... Nf8 {[%clk 0:00:03.3]} 35.
Nf5 {[%clk 0:00:11.7]} 35... N8e6 {[%clk 0:00:03.2]} 36. Nxh6+ {[%clk
0:00:11.8]} 36... Kh7 {[%clk 0:00:03.9]} 37. Ng4 {[%clk 0:00:11.8]} 37... Ng6
{[%clk 0:00:03.1]} 38. Nf6+ {[%clk 0:00:11.7]} 38... Kh6 {[%clk 0:00:03.1]} 39.
Nxd7 {[%clk 0:00:12.6]} 39... Nxe5 {[%clk 0:00:03.5]} 40. Ndxe5 {[%clk
0:00:12.3]} 40... f6 {[%clk 0:00:04.1]} 41. Nd7 {[%clk 0:00:12.5]} 41... Kg6
{[%clk 0:00:04.5]} 42. g4 {[%clk 0:00:11.3]} 42... Nf4 {[%clk 0:00:05]} 43. Kh2
{[%clk 0:00:11.6]} 43... Ne2 {[%clk 0:00:05.1]} 44. d5 {[%clk 0:00:11.1]} 44...
cxd5 {[%clk 0:00:05.3]} 45. b5 {[%clk 0:00:11.8]} 45... Nf4 {[%clk 0:00:05.1]}
46. c6 {[%clk 0:00:12.1]} 46... bxc6 {[%clk 0:00:05.9]} 47. bxc6 {[%clk
0:00:12.9]} 47... Ne6 {[%clk 0:00:06.5]} 48. Nf8+ {[%clk 0:00:13.5]} 48... Nxf8
{[%clk 0:00:06.4]} 49. c7 {[%clk 0:00:13.6]} 49... d4 {[%clk 0:00:05.6]} 50.
c8=Q {[%clk 0:00:13.7]} 50... d3 {[%clk 0:00:06.5]} 51. Qf5+ {[%clk 0:00:14]}
51... Kh6 {[%clk 0:00:07.2]} 52. Qxd3 {[%clk 0:00:14.9]} 52... Ne6 {[%clk
0:00:07.3]} 53. Qd6 {[%clk 0:00:15.2]} 53... Ng7 {[%clk 0:00:07.3]} 54. Qxf6+
{[%clk 0:00:15.4]} 54... Kh7 {[%clk 0:00:08.2]} 55. Nxg5+ {[%clk 0:00:15.8]}
55... Kg8 {[%clk 0:00:09.1]} 56. Qd8+ {[%clk 0:00:15.9]} 56... Ne8 {[%clk
0:00:09]} 57. Qxe8+ {[%clk 0:00:16.2]} 57... Kg7 {[%clk 0:00:09.9]} 58. h4
{[%clk 0:00:16.4]} 58... Kh6 {[%clk 0:00:10.8]} 59. Qf7 {[%clk 0:00:15.5]} 59...
a5 {[%clk 0:00:10.3]} 60. Qh7# {[%clk 0:00:16.4]} 1-0

[Event "Late-Titled-Tuesday-Blitz-September-26-2023"]
[Site "Chess.com"]
[Date "2023.09.26"]
[Round "2"]
[White "aa175"]
[Black "MAGMAchess02"]
[Result "1/2-1/2"]
[WhiteElo "2581"]
[BlackElo "2366"]
[TimeControl "180+1"]
[EndTime "14:18:28 PDT"]
[Termination "Game drawn by repetition"]

1. d4 {[%clk 0:03:00.9]} 1... d5 {[%clk 0:02:58.8]} 2. Bf4 {[%clk 0:02:55]} 2...
Bf5 {[%clk 0:02:52.4]} 3. e3 {[%clk 0:02:54.9]} 3... e6 {[%clk 0:02:48.9]} 4.
Bd3 {[%clk 0:02:54.5]} 4... Bxd3 {[%clk 0:02:43.5]} 5. cxd3 {[%clk 0:02:55.4]}
5... c6 {[%clk 0:02:43.9]} 6. Nc3 {[%clk 0:02:53.7]} 6... Bd6 {[%clk 0:02:43.7]}
7. Qg4 {[%clk 0:02:53.3]} 7... g6 {[%clk 0:02:15.8]} 8. h4 {[%clk 0:02:49.9]}
8... h5 {[%clk 0:02:10.1]} 9. Qg3 {[%clk 0:02:45.7]} 9... Bxf4 {[%clk
0:02:09.5]} 10. Qxf4 {[%clk 0:02:46.6]} 10... Nd7 {[%clk 0:01:55.2]} 11. Nf3
{[%clk 0:02:46.8]} 11... Nh6 {[%clk 0:01:47]} 12. e4 {[%clk 0:02:42.3]} 12...
Ng4 {[%clk 0:01:39.3]} 13. Ng5 {[%clk 0:02:37.1]} 13... Qf6 {[%clk 0:01:35]} 14.
Ne2 {[%clk 0:02:21.4]} 14... Qxf4 {[%clk 0:01:21.6]} 15. Nxf4 {[%clk 0:02:22.3]}
15... O-O {[%clk 0:01:21.7]} 16. f3 {[%clk 0:02:13.7]} 16... Ngf6 {[%clk
0:01:14.8]} 17. Kf2 {[%clk 0:02:12.6]} 17... a5 {[%clk 0:00:54.1]} 18. e5 {[%clk
0:02:09.8]} 18... Nh7 {[%clk 0:00:50.9]} 19. g4 {[%clk 0:02:08.6]} 19... hxg4
{[%clk 0:00:48.7]} 20. fxg4 {[%clk 0:02:09.5]} 20... Nxg5 {[%clk 0:00:48]} 21.
hxg5 {[%clk 0:02:09.9]} 21... Kg7 {[%clk 0:00:48.7]} 22. Rh6 {[%clk 0:02:06]}
22... Rh8 {[%clk 0:00:48.8]} 23. Rah1 {[%clk 0:02:04.5]} 23... b6 {[%clk
0:00:44.3]} 24. Ke3 {[%clk 0:01:58.9]} 24... a4 {[%clk 0:00:42.5]} 25. a3 {[%clk
0:01:46.3]} 25... c5 {[%clk 0:00:41.5]} 26. R1h2 {[%clk 0:01:40.3]} 26... Rac8
{[%clk 0:00:37.8]} 27. Rh1 {[%clk 0:01:39.3]} 27... Nb8 {[%clk 0:00:22.8]} 28.
Ne2 {[%clk 0:01:08.2]} 28... Nc6 {[%clk 0:00:21.9]} 29. Kf4 {[%clk 0:00:54.9]}
29... Nxd4 {[%clk 0:00:18.2]} 30. Nxd4 {[%clk 0:00:49.1]} 30... cxd4 {[%clk
0:00:18.3]} 31. Rxh8 {[%clk 0:00:49.2]} 31... Rxh8 {[%clk 0:00:18.2]} 32. Rxh8
{[%clk 0:00:49.3]} 32... Kxh8 {[%clk 0:00:18.7]} 33. Kf3 {[%clk 0:00:49.7]}
33... Kg8 {[%clk 0:00:18]} 34. Ke2 {[%clk 0:00:47.1]} 34... Kf8 {[%clk
0:00:18.4]} 35. Kd2 {[%clk 0:00:47.7]} 35... Ke7 {[%clk 0:00:17.3]} 36. Kc2
{[%clk 0:00:47.8]} 36... Kd7 {[%clk 0:00:16.4]} 37. b3 {[%clk 0:00:32.7]} 37...
b5 {[%clk 0:00:06.3]} 38. Kc1 {[%clk 0:00:18.6]} 38... Kc6 {[%clk 0:00:06.4]}
39. Kb1 {[%clk 0:00:18.4]} 39... Kb6 {[%clk 0:00:06.3]} 40. Ka1 {[%clk
0:00:14.5]} 40... axb3 {[%clk 0:00:03.8]} 41. Kb2 {[%clk 0:00:14.5]} 41... Ka6
{[%clk 0:00:02.9]} 42. Kxb3 {[%clk 0:00:15.1]} 42... Ka5 {[%clk 0:00:03.4]} 43.
Kb2 {[%clk 0:00:10.6]} 43... Ka4 {[%clk 0:00:03.9]} 44. Ka2 {[%clk 0:00:10.3]}
44... b4 {[%clk 0:00:04.5]} 45. axb4 {[%clk 0:00:09.9]} 45... Kxb4 {[%clk
0:00:05.4]} 46. Kb2 {[%clk 0:00:01.8]} 46... Ka4 {[%clk 0:00:06]} 47. Ka2 {[%clk
0:00:01.7]} 47... Kb4 {[%clk 0:00:06.6]} 48. Kb2 {[%clk 0:00:01.5]} 48... Ka4
{[%clk 0:00:05.9]} 49. Ka2 {[%clk 0:00:01.4]} 49... Ka5 {[%clk 0:00:05]} 50. Ka3
{[%clk 0:00:01.5]} 50... Kb5 {[%clk 0:00:05.4]} 51. Kb3 {[%clk 0:00:01.5]} 51...
Ka5 {[%clk 0:00:05.9]} 52. Ka3 {[%clk 0:00:01.4]} 52... Kb5 {[%clk 0:00:06.5]}
53. Kb3 {[%clk 0:00:01.4]} 53... Ka5 {[%clk 0:00:07]} 54. Ka3 {[%clk 0:00:01.2]}
1/2-1/2